[Event "Titled Tuesday Blitz August 15 Early 2023"]
[White "Zampronha, Wladimir Camilo"]
[Black "Slovineanu, Viacheslav"]
[WhiteFideId "2103087"]
[BlackFideId "13900510"]
[WhiteElo "2233"]
[BlackElo "2356"]
[Result "0-1"]
[Round "7"]
[TimeControl "180+1"]
[Date "2023.08.15"]
[WhiteClock "0:00:00"]
[BlackClock "0:00:10"]
[Board "170"]

1. e4 {[%clk 0:03:00]}  c6 {[%clk 0:02:57]} 2. d4 {[%clk 0:02:59]}  d5 {[%clk 0:02:57]} 3. e5 {[%clk 0:03:00]}  Bf5 {[%clk 0:02:57]} 4. Nf3 {[%clk 0:03:00]}  e6 {[%clk 0:02:57]} 5. Be2 {[%clk 0:02:59]}  Nd7 {[%clk 0:02:57]} 6. O-O {[%clk 0:02:59]}  a6 {[%clk 0:02:57]} 7. Nbd2 {[%clk 0:02:54]}  h6 {[%clk 0:02:56]} 8. b3 {[%clk 0:02:48]}  g5 {[%clk 0:02:49]} 9. Bb2 {[%clk 0:02:47]}  Ne7 {[%clk 0:02:47]} 10. Ne1 {[%clk 0:02:41]}  Bg6 {[%clk 0:02:40]} 11. Nd3 {[%clk 0:02:38]}  Bg7 {[%clk 0:02:29]} 12. Rc1 {[%clk 0:02:05]}  Nf5 {[%clk 0:02:22]} 13. Bh5 {[%clk 0:01:49]}  Bxh5 {[%clk 0:02:10]} 14. Qxh5 {[%clk 0:01:47]}  Qe7 {[%clk 0:02:10]} 15. Rfe1 {[%clk 0:01:43]}  O-O-O {[%clk 0:01:39]} 16. c4 {[%clk 0:01:43]}  f6 {[%clk 0:01:37]} 17. cxd5 {[%clk 0:01:39]}  exd5 {[%clk 0:01:33]} 18. Qg4 {[%clk 0:01:28]}  Qe6 {[%clk 0:01:22]} 19. exf6 {[%clk 0:01:28]}  Qxf6 {[%clk 0:01:22]} 20. Ne5 {[%clk 0:01:22]}  h5 {[%clk 0:01:18]} 21. Qf3 {[%clk 0:01:08]}  g4 {[%clk 0:01:01]} 22. Qd3 {[%clk 0:01:08]}  Nxe5 {[%clk 0:00:48]} 23. dxe5 {[%clk 0:01:08]}  Qe6 {[%clk 0:00:45]} 24. b4 {[%clk 0:01:05]}  Bh6 {[%clk 0:00:39]} 25. a4 {[%clk 0:01:02]}  Ne7 {[%clk 0:00:16]} 26. b5 {[%clk 0:00:59]}  axb5 {[%clk 0:00:16]} 27. axb5 {[%clk 0:01:00]}  Qf5 {[%clk 0:00:15]} 28. Qxf5+ {[%clk 0:00:57]}  Nxf5 {[%clk 0:00:16]} 29. Rc2 {[%clk 0:00:55]}  Bxd2 {[%clk 0:00:15]} 30. Rxd2 {[%clk 0:00:55]}  Ne7 {[%clk 0:00:15]} 31. Ba3 {[%clk 0:00:52]}  Kd7 {[%clk 0:00:15]} 32. Rb1 {[%clk 0:00:50]}  Ke6 {[%clk 0:00:13]} 33. Rc2 {[%clk 0:00:46]}  Rc8 {[%clk 0:00:12]} 34. bxc6 {[%clk 0:00:45]}  Rxc6 {[%clk 0:00:13]} 35. Rcb2 {[%clk 0:00:40]}  Rb8 {[%clk 0:00:11]} 36. Bxe7 {[%clk 0:00:37]}  Kxe7 {[%clk 0:00:11]} 37. Rxb7+ {[%clk 0:00:36]}  Rxb7 {[%clk 0:00:11]} 38. Rxb7+ {[%clk 0:00:37]}  Ke6 {[%clk 0:00:12]} 39. g3 {[%clk 0:00:31]}  d4 {[%clk 0:00:12]} 40. Rh7 {[%clk 0:00:30]}  Rc1+ {[%clk 0:00:09]} 41. Kg2 {[%clk 0:00:29]}  d3 {[%clk 0:00:10]} 42. Rh6+ {[%clk 0:00:24]}  Kxe5 {[%clk 0:00:09]} 43. Rxh5+ {[%clk 0:00:24]}  Ke4 {[%clk 0:00:10]} 44. Rh8 {[%clk 0:00:12]}  d2 {[%clk 0:00:10]} 45. Re8+ {[%clk 0:00:12]}  Kf5 {[%clk 0:00:10]} 46. Rd8 {[%clk 0:00:00]}  d1=Q {[%clk 0:00:10]} 0-1


[Site "https://www.chess.com"]

[Event "Titled Tuesday Blitz August 15 Early 2023"]
[White "Konenkin, Dmitry"]
[Black "Floresvillar Gonzalez, Luis Migu"]
[WhiteFideId "4185781"]
[BlackFideId "5100542"]
[WhiteElo "2286"]
[BlackElo "2114"]
[Result "1-0"]
[Round "7"]
[TimeControl "180+1"]
[Date "2023.08.15"]
[WhiteClock "0:00:15"]
[BlackClock "0:00:00"]
[Board "172"]

1. d4 {[%clk 0:03:00]}  d5 {[%clk 0:02:58]} 2. Bg5 {[%clk 0:03:01]}  c6 {[%clk 0:02:57]} 3. e3 {[%clk 0:03:01]}  Bf5 {[%clk 0:02:56]} 4. c4 {[%clk 0:02:59]}  h6 {[%clk 0:02:51]} 5. Bh4 {[%clk 0:02:59]}  g5 {[%clk 0:02:45]} 6. Bg3 {[%clk 0:02:59]}  e6 {[%clk 0:02:40]} 7. Nc3 {[%clk 0:02:58]}  Bg7 {[%clk 0:02:36]} 8. Qb3 {[%clk 0:02:56]}  Qc8 {[%clk 0:02:32]} 9. Rc1 {[%clk 0:02:52]}  Nf6 {[%clk 0:02:30]} 10. cxd5 {[%clk 0:02:51]}  exd5 {[%clk 0:02:29]} 11. Nb5 {[%clk 0:02:33]}  O-O {[%clk 0:02:12]} 12. Nc7 {[%clk 0:02:30]}  Nbd7 {[%clk 0:02:11]} 13. Nxa8 {[%clk 0:02:30]}  Qxa8 {[%clk 0:02:11]} 14. Bd3 {[%clk 0:02:27]}  Be4 {[%clk 0:02:07]} 15. Nf3 {[%clk 0:02:15]}  Re8 {[%clk 0:02:07]} 16. O-O {[%clk 0:02:14]}  Bxd3 {[%clk 0:01:56]} 17. Qxd3 {[%clk 0:02:13]}  Ne4 {[%clk 0:01:56]} 18. Nd2 {[%clk 0:02:02]}  f5 {[%clk 0:01:54]} 19. f3 {[%clk 0:01:50]}  Nxg3 {[%clk 0:01:53]} 20. hxg3 {[%clk 0:01:51]}  Qc8 {[%clk 0:01:39]} 21. Qxf5 {[%clk 0:01:17]}  Rxe3 {[%clk 0:01:38]} 22. Nb3 {[%clk 0:01:17]}  Qe8 {[%clk 0:01:30]} 23. Qc2 {[%clk 0:00:54]}  Re2 {[%clk 0:01:23]} 24. Qc3 {[%clk 0:00:54]}  Nb6 {[%clk 0:01:18]} 25. Rce1 {[%clk 0:00:49]}  Nc4 {[%clk 0:01:11]} 26. Rxe2 {[%clk 0:00:44]}  Qxe2 {[%clk 0:01:10]} 27. Re1 {[%clk 0:00:41]}  Qxb2 {[%clk 0:01:09]} 28. Qxb2 {[%clk 0:00:41]}  Nxb2 {[%clk 0:01:09]} 29. Re7 {[%clk 0:00:38]}  a5 {[%clk 0:00:58]} 30. Nxa5 {[%clk 0:00:30]}  Bxd4+ {[%clk 0:00:56]} 31. Kf1 {[%clk 0:00:30]}  c5 {[%clk 0:00:26]} 32. Rxb7 {[%clk 0:00:22]}  c4 {[%clk 0:00:25]} 33. Rd7 {[%clk 0:00:16]}  c3 {[%clk 0:00:24]} 34. Rxd5 {[%clk 0:00:15]}  c2 {[%clk 0:00:23]} 35. Nb3 {[%clk 0:00:16]}  Be3 {[%clk 0:00:20]} 36. Rd8+ {[%clk 0:00:15]}  Kf7 {[%clk 0:00:19]} 37. Rc8 {[%clk 0:00:16]}  Nd3 {[%clk 0:00:14]} 38. Rxc2 {[%clk 0:00:15]}  Ne5 {[%clk 0:00:09]} 39. Re2 {[%clk 0:00:15]}  Nc4 {[%clk 0:00:04]} 40. Rc2 {[%clk 0:00:16]}  Nd6 {[%clk 0:00:00]} 41. a4 {[%clk 0:00:15]} 1-0


[Site "https://www.chess.com"]

[Event "Titled Tuesday Blitz August 15 Early 2023"]
[White "Wang, Alexander J"]
[Black "Stangl, Anita, Dr."]
[WhiteFideId "30955270"]
[BlackFideId "4608801"]
[WhiteElo "2284"]
[BlackElo "2097"]
[Result "1-0"]
[Round "7"]
[TimeControl "180+1"]
[Date "2023.08.15"]
[WhiteClock "0:01:10"]
[BlackClock "0:01:17"]
[Board "173"]

1. e4 {[%clk 0:03:00]}  e6 {[%clk 0:03:00]} 2. d4 {[%clk 0:03:00]}  d5 {[%clk 0:03:00]} 3. e5 {[%clk 0:03:00]}  c5 {[%clk 0:03:00]} 4. c3 {[%clk 0:03:00]}  Nc6 {[%clk 0:03:00]} 5. Nf3 {[%clk 0:02:58]}  Qb6 {[%clk 0:03:00]} 6. Be2 {[%clk 0:02:56]}  Bd7 {[%clk 0:03:00]} 7. O-O {[%clk 0:02:52]}  cxd4 {[%clk 0:03:00]} 8. cxd4 {[%clk 0:02:50]}  f6 {[%clk 0:03:01]} 9. exf6 {[%clk 0:02:47]}  Nxf6 {[%clk 0:03:00]} 10. Nc3 {[%clk 0:02:48]}  Bd6 {[%clk 0:03:00]} 11. h3 {[%clk 0:02:45]}  O-O {[%clk 0:03:00]} 12. a3 {[%clk 0:02:44]}  a6 {[%clk 0:02:57]} 13. b4 {[%clk 0:02:43]}  Ne4 {[%clk 0:02:54]} 14. Bb2 {[%clk 0:02:33]}  Nxc3 {[%clk 0:02:53]} 15. Bxc3 {[%clk 0:02:34]}  Rac8 {[%clk 0:02:52]} 16. Rc1 {[%clk 0:02:32]}  Bb8 {[%clk 0:02:52]} 17. Qd2 {[%clk 0:02:25]}  Ne7 {[%clk 0:02:42]} 18. Bb2 {[%clk 0:02:21]}  Qd6 {[%clk 0:02:40]} 19. Rxc8 {[%clk 0:02:17]}  Bxc8 {[%clk 0:02:40]} 20. g3 {[%clk 0:02:15]}  Nf5 {[%clk 0:02:32]} 21. Ne5 {[%clk 0:02:12]}  Qe7 {[%clk 0:02:27]} 22. Bg4 {[%clk 0:01:55]}  Nh6 {[%clk 0:02:23]} 23. f4 {[%clk 0:01:49]}  Bxe5 {[%clk 0:02:20]} 24. dxe5 {[%clk 0:01:47]}  Nxg4 {[%clk 0:02:20]} 25. hxg4 {[%clk 0:01:46]}  Bd7 {[%clk 0:02:20]} 26. Bd4 {[%clk 0:01:42]}  Rc8 {[%clk 0:02:19]} 27. Bc5 {[%clk 0:01:42]}  Qf7 {[%clk 0:02:18]} 28. Qf2 {[%clk 0:01:25]}  Qg6 {[%clk 0:02:17]} 29. f5 {[%clk 0:01:22]}  Qxg4 {[%clk 0:02:08]} 30. fxe6 {[%clk 0:01:18]}  h6 {[%clk 0:01:53]} 31. exd7 {[%clk 0:01:16]}  Qxd7 {[%clk 0:01:52]} 32. Qf5 {[%clk 0:01:16]}  Qc7 {[%clk 0:01:31]} 33. Qe6+ {[%clk 0:01:12]}  Kh8 {[%clk 0:01:30]} 34. Rf7 {[%clk 0:01:10]}  Qc6 {[%clk 0:01:27]} 35. Qxc8+ {[%clk 0:01:08]}  Qxc8 {[%clk 0:01:22]} 36. Rf8+ {[%clk 0:01:08]}  Qxf8 {[%clk 0:01:22]} 37. Bxf8 {[%clk 0:01:09]}  d4 {[%clk 0:01:22]} 38. Kf2 {[%clk 0:01:09]}  Kg8 {[%clk 0:01:21]} 39. Bd6 {[%clk 0:01:08]}  Kf7 {[%clk 0:01:21]} 40. Ke2 {[%clk 0:01:09]}  Ke6 {[%clk 0:01:21]} 41. Kd3 {[%clk 0:01:09]}  Kd5 {[%clk 0:01:22]} 42. Bb8 {[%clk 0:01:09]}  g5 {[%clk 0:01:20]} 43. g4 {[%clk 0:01:09]}  h5 {[%clk 0:01:18]} 44. gxh5 {[%clk 0:01:09]}  g4 {[%clk 0:01:18]} 45. e6 {[%clk 0:01:09]}  Kxe6 {[%clk 0:01:17]} 46. Kxd4 {[%clk 0:01:09]}  Kf5 {[%clk 0:01:18]} 47. Kc5 {[%clk 0:01:09]}  Kg5 {[%clk 0:01:18]} 48. Kb6 {[%clk 0:01:09]}  Kxh5 {[%clk 0:01:18]} 49. Kxb7 {[%clk 0:01:10]}  Kg5 {[%clk 0:01:17]} 50. Kxa6 {[%clk 0:01:10]} 1-0


[Site "https://www.chess.com"]

[Event "Titled Tuesday Blitz August 15 Early 2023"]
[White "Rodriguez Santiago, Jaime"]
[Black "Souza Neves, Andrey M."]
[WhiteFideId "3100898"]
[BlackFideId "2101815"]
[WhiteElo "2278"]
[BlackElo "2099"]
[Result "0-1"]
[Round "7"]
[TimeControl "180+1"]
[Date "2023.08.15"]
[WhiteClock "0:00:00"]
[BlackClock "0:00:32"]
[Board "174"]

1. c4 {[%clk 0:03:00]}  e6 {[%clk 0:02:38]} 2. Nf3 {[%clk 0:02:59]}  d5 {[%clk 0:02:38]} 3. g3 {[%clk 0:03:00]}  Nf6 {[%clk 0:02:35]} 4. Bg2 {[%clk 0:03:01]}  c6 {[%clk 0:02:35]} 5. O-O {[%clk 0:03:01]}  dxc4 {[%clk 0:02:34]} 6. Ne5 {[%clk 0:02:58]}  b5 {[%clk 0:02:30]} 7. Nxc6 {[%clk 0:02:56]}  Nxc6 {[%clk 0:02:29]} 8. Bxc6+ {[%clk 0:02:55]}  Bd7 {[%clk 0:02:30]} 9. Bxa8 {[%clk 0:02:44]}  Qxa8 {[%clk 0:02:30]} 10. d3 {[%clk 0:02:41]}  h5 {[%clk 0:02:29]} 11. h4 {[%clk 0:02:38]}  Bc5 {[%clk 0:02:22]} 12. d4 {[%clk 0:02:32]}  Bd6 {[%clk 0:02:19]} 13. Nd2 {[%clk 0:02:18]}  Bc6 {[%clk 0:02:15]} 14. Nf3 {[%clk 0:01:54]}  O-O {[%clk 0:02:03]} 15. Bf4 {[%clk 0:01:47]}  Bxf4 {[%clk 0:01:58]} 16. gxf4 {[%clk 0:01:46]}  Nd5 {[%clk 0:01:56]} 17. Qd2 {[%clk 0:01:30]}  f6 {[%clk 0:01:33]} 18. Kh2 {[%clk 0:01:22]}  Qb8 {[%clk 0:01:32]} 19. Rg1 {[%clk 0:00:51]}  Nxf4 {[%clk 0:01:29]} 20. Rg3 {[%clk 0:00:45]}  g5 {[%clk 0:01:16]} 21. Rag1 {[%clk 0:00:44]}  g4 {[%clk 0:01:14]} 22. Ne1 {[%clk 0:00:19]}  Kh8 {[%clk 0:01:06]} 23. e3 {[%clk 0:00:18]}  Ng6 {[%clk 0:01:00]} 24. e4 {[%clk 0:00:19]}  Nf4 {[%clk 0:00:48]} 25. e5 {[%clk 0:00:18]}  fxe5 {[%clk 0:00:47]} 26. dxe5 {[%clk 0:00:17]}  Qxe5 {[%clk 0:00:46]} 27. Nc2 {[%clk 0:00:13]}  Kg7 {[%clk 0:00:37]} 28. Nb4 {[%clk 0:00:03]}  Qf6 {[%clk 0:00:33]} 29. Nxc6 {[%clk 0:00:00]}  Qxh4+ {[%clk 0:00:32]} 0-1


[Site "https://www.chess.com"]

[Event "Titled Tuesday Blitz August 15 Early 2023"]
[White "Iunusovnuriddin"]
[Black "Putri, Regita Desyari"]
[BlackFideId "7109083"]
[WhiteElo "2309"]
[BlackElo "2199"]
[Result "1-0"]
[Round "7"]
[TimeControl "180+1"]
[Date "2023.08.15"]
[WhiteClock "0:00:12"]
[BlackClock "0:00:06"]
[Board "177"]

1. d4 {[%clk 0:02:55]}  Nf6 {[%clk 0:02:59]} 2. c4 {[%clk 0:02:55]}  g6 {[%clk 0:02:59]} 3. Nc3 {[%clk 0:02:55]}  d5 {[%clk 0:02:59]} 4. Nf3 {[%clk 0:02:45]}  Bg7 {[%clk 0:02:58]} 5. Qb3 {[%clk 0:02:44]}  c6 {[%clk 0:02:56]} 6. Bg5 {[%clk 0:02:40]}  dxc4 {[%clk 0:02:53]} 7. Qxc4 {[%clk 0:02:40]}  O-O {[%clk 0:02:52]} 8. e4 {[%clk 0:02:34]}  h6 {[%clk 0:02:45]} 9. Bf4 {[%clk 0:02:27]}  Na6 {[%clk 0:02:44]} 10. Be2 {[%clk 0:02:14]}  Be6 {[%clk 0:02:30]} 11. Qa4 {[%clk 0:02:14]}  Nc7 {[%clk 0:02:28]} 12. O-O {[%clk 0:02:01]}  g5 {[%clk 0:02:22]} 13. Be5 {[%clk 0:01:33]}  Bg4 {[%clk 0:02:10]} 14. h3 {[%clk 0:01:28]}  Bh5 {[%clk 0:02:09]} 15. Rad1 {[%clk 0:01:10]}  Bg6 {[%clk 0:02:07]} 16. Bd3 {[%clk 0:01:08]}  Ne6 {[%clk 0:02:02]} 17. Rfe1 {[%clk 0:01:07]}  Nh5 {[%clk 0:01:34]} 18. Bxg7 {[%clk 0:01:05]}  Kxg7 {[%clk 0:01:35]} 19. Bf1 {[%clk 0:01:00]}  Kh7 {[%clk 0:01:20]} 20. d5 {[%clk 0:00:55]}  cxd5 {[%clk 0:01:18]} 21. Nxd5 {[%clk 0:00:55]}  Qe8 {[%clk 0:01:17]} 22. Qb4 {[%clk 0:00:51]}  Nef4 {[%clk 0:01:09]} 23. Nc7 {[%clk 0:00:48]}  Qc6 {[%clk 0:01:01]} 24. Nxa8 {[%clk 0:00:48]}  Rxa8 {[%clk 0:01:01]} 25. g3 {[%clk 0:00:47]}  Ne6 {[%clk 0:00:51]} 26. Qxe7 {[%clk 0:00:47]}  Re8 {[%clk 0:00:48]} 27. Qb4 {[%clk 0:00:43]}  a5 {[%clk 0:00:47]} 28. Qxa5 {[%clk 0:00:30]}  Qc2 {[%clk 0:00:40]} 29. Ne5 {[%clk 0:00:21]}  Bxe4 {[%clk 0:00:28]} 30. Rc1 {[%clk 0:00:21]}  Qxb2 {[%clk 0:00:26]} 31. Nxf7 {[%clk 0:00:18]}  Nd4 {[%clk 0:00:20]} 32. Bg2 {[%clk 0:00:08]}  Ne2+ {[%clk 0:00:17]} 33. Rxe2 {[%clk 0:00:07]}  Qxe2 {[%clk 0:00:17]} 34. Nd6 {[%clk 0:00:03]}  Bxg2 {[%clk 0:00:12]} 35. Qf5+ {[%clk 0:00:03]}  Kg8 {[%clk 0:00:09]} 36. Nxe8 {[%clk 0:00:04]}  Bc6 {[%clk 0:00:06]} 37. Nf6+ {[%clk 0:00:04]}  Kg7 {[%clk 0:00:05]} 38. Nxh5+ {[%clk 0:00:04]}  Kg8 {[%clk 0:00:05]} 39. Rxc6 {[%clk 0:00:04]}  Qe1+ {[%clk 0:00:04]} 40. Kg2 {[%clk 0:00:04]}  bxc6 {[%clk 0:00:05]} 41. Qc8+ {[%clk 0:00:03]}  Kf7 {[%clk 0:00:04]} 42. Qxc6 {[%clk 0:00:04]}  Qd2 {[%clk 0:00:04]} 43. Qf3+ {[%clk 0:00:05]}  Kg8 {[%clk 0:00:03]} 44. Nf6+ {[%clk 0:00:05]}  Kg7 {[%clk 0:00:04]} 45. Ng4 {[%clk 0:00:06]}  Qd6 {[%clk 0:00:03]} 46. Qf6+ {[%clk 0:00:06]}  Qxf6 {[%clk 0:00:03]} 47. Nxf6 {[%clk 0:00:07]}  Kxf6 {[%clk 0:00:04]} 48. g4 {[%clk 0:00:08]}  Ke5 {[%clk 0:00:05]} 49. Kf3 {[%clk 0:00:09]}  Kd5 {[%clk 0:00:06]} 50. a4 {[%clk 0:00:10]}  Kc5 {[%clk 0:00:07]} 51. Ke4 {[%clk 0:00:10]}  Kb4 {[%clk 0:00:08]} 52. Kf5 {[%clk 0:00:11]}  Kxa4 {[%clk 0:00:06]} 53. Kg6 {[%clk 0:00:12]} 1-0


[Site "https://www.chess.com"]

[Event "Titled Tuesday Blitz August 15 Early 2023"]
[White "Muhammad Shahzeb"]
[Black "Tqebuchava, Zurab"]
[WhiteFideId "7804806"]
[BlackFideId "13601113"]
[WhiteElo "2293"]
[BlackElo "2198"]
[Result "1-0"]
[Round "7"]
[TimeControl "180+1"]
[Date "2023.08.15"]
[WhiteClock "0:01:45"]
[BlackClock "0:00:00"]
[Board "178"]

1. e4 {[%clk 0:03:00]}  d6 {[%clk 0:02:59]} 2. d4 {[%clk 0:03:00]}  g6 {[%clk 0:02:58]} 3. Nc3 {[%clk 0:03:01]}  Bg7 {[%clk 0:02:58]} 4. Bg5 {[%clk 0:03:02]}  c6 {[%clk 0:02:58]} 5. Qd2 {[%clk 0:03:00]}  Nd7 {[%clk 0:02:54]} 6. O-O-O {[%clk 0:02:59]}  b5 {[%clk 0:02:53]} 7. f4 {[%clk 0:02:59]}  b4 {[%clk 0:02:51]} 8. Nce2 {[%clk 0:02:59]}  Qa5 {[%clk 0:02:40]} 9. Kb1 {[%clk 0:02:57]}  Rb8 {[%clk 0:02:39]} 10. Nf3 {[%clk 0:02:50]}  Rb6 {[%clk 0:02:37]} 11. Ng3 {[%clk 0:02:47]}  Ba6 {[%clk 0:02:36]} 12. Ne2 {[%clk 0:02:23]}  Ngf6 {[%clk 0:01:54]} 13. Qe3 {[%clk 0:02:17]}  Bc4 {[%clk 0:01:38]} 14. b3 {[%clk 0:02:16]}  Bxe2 {[%clk 0:01:35]} 15. Bxe2 {[%clk 0:02:16]}  O-O {[%clk 0:01:23]} 16. h4 {[%clk 0:02:15]}  d5 {[%clk 0:01:10]} 17. e5 {[%clk 0:02:08]}  Ne4 {[%clk 0:01:09]} 18. Rd3 {[%clk 0:02:03]}  Ra6 {[%clk 0:01:00]} 19. a4 {[%clk 0:01:59]}  Nc3+ {[%clk 0:00:52]} 20. Rxc3 {[%clk 0:01:58]}  bxc3 {[%clk 0:00:52]} 21. Bxa6 {[%clk 0:01:57]}  Qxa6 {[%clk 0:00:50]} 22. Bxe7 {[%clk 0:01:56]}  Rb8 {[%clk 0:00:44]} 23. Bd6 {[%clk 0:01:52]}  Rb7 {[%clk 0:00:39]} 24. Qxc3 {[%clk 0:01:51]}  Qxa4 {[%clk 0:00:34]} 25. h5 {[%clk 0:01:47]}  Nb6 {[%clk 0:00:24]} 26. bxa4 {[%clk 0:01:44]}  Nxa4+ {[%clk 0:00:00]} 27. Qb3 {[%clk 0:01:45]} 1-0


[Site "https://www.chess.com"]

[Event "Titled Tuesday Blitz August 15 Early 2023"]
[White "Novikova, Margarita"]
[Black "Ai, Evan"]
[WhiteFideId "14109689"]
[BlackFideId "2094770"]
[WhiteElo "2125"]
[BlackElo "2279"]
[Result "1-0"]
[Round "7"]
[TimeControl "180+1"]
[Date "2023.08.15"]
[WhiteClock "0:01:33"]
[BlackClock "0:00:27"]
[Board "180"]

1. e4 {[%clk 0:02:58]}  e5 {[%clk 0:02:32]} 2. Nf3 {[%clk 0:02:55]}  Nc6 {[%clk 0:02:32]} 3. Bc4 {[%clk 0:02:56]}  Nf6 {[%clk 0:02:32]} 4. Ng5 {[%clk 0:02:53]}  d5 {[%clk 0:02:32]} 5. exd5 {[%clk 0:02:54]}  Na5 {[%clk 0:02:32]} 6. Bb5+ {[%clk 0:02:53]}  c6 {[%clk 0:02:32]} 7. dxc6 {[%clk 0:02:54]}  bxc6 {[%clk 0:02:33]} 8. Be2 {[%clk 0:02:54]}  h6 {[%clk 0:02:33]} 9. Nf3 {[%clk 0:02:53]}  e4 {[%clk 0:02:32]} 10. Ng1 {[%clk 0:02:53]}  Bc5 {[%clk 0:02:32]} 11. d3 {[%clk 0:02:51]}  O-O {[%clk 0:02:26]} 12. a3 {[%clk 0:02:37]}  exd3 {[%clk 0:02:23]} 13. Qxd3 {[%clk 0:02:36]}  Qxd3 {[%clk 0:02:19]} 14. Bxd3 {[%clk 0:02:36]}  Re8+ {[%clk 0:02:19]} 15. Ne2 {[%clk 0:02:36]}  Bd6 {[%clk 0:01:58]} 16. O-O {[%clk 0:02:31]}  Nb7 {[%clk 0:01:54]} 17. Bf4 {[%clk 0:02:30]}  Bxf4 {[%clk 0:01:37]} 18. Nxf4 {[%clk 0:02:31]}  Nc5 {[%clk 0:01:37]} 19. Nc3 {[%clk 0:02:19]}  a5 {[%clk 0:01:26]} 20. Rfe1 {[%clk 0:02:17]}  Bd7 {[%clk 0:01:22]} 21. Bc4 {[%clk 0:02:14]}  Reb8 {[%clk 0:01:16]} 22. b3 {[%clk 0:02:12]}  Bf5 {[%clk 0:01:14]} 23. Re2 {[%clk 0:02:06]}  Nce4 {[%clk 0:01:12]} 24. Nxe4 {[%clk 0:02:02]}  Nxe4 {[%clk 0:01:13]} 25. Bd3 {[%clk 0:01:58]}  Nd6 {[%clk 0:01:11]} 26. Bxf5 {[%clk 0:01:56]}  Nxf5 {[%clk 0:01:12]} 27. a4 {[%clk 0:01:54]}  Re8 {[%clk 0:01:08]} 28. Rae1 {[%clk 0:01:52]}  Rxe2 {[%clk 0:01:04]} 29. Rxe2 {[%clk 0:01:53]}  Nd4 {[%clk 0:01:04]} 30. Rd2 {[%clk 0:01:53]}  Rd8 {[%clk 0:00:54]} 31. Kf1 {[%clk 0:01:51]}  g5 {[%clk 0:00:39]} 32. Ne2 {[%clk 0:01:45]}  Ne6 {[%clk 0:00:37]} 33. Rxd8+ {[%clk 0:01:44]}  Nxd8 {[%clk 0:00:38]} 34. Nd4 {[%clk 0:01:43]}  Kg7 {[%clk 0:00:38]} 35. b4 {[%clk 0:01:35]}  axb4 {[%clk 0:00:37]} 36. a5 {[%clk 0:01:35]}  c5 {[%clk 0:00:27]} 37. a6 {[%clk 0:01:33]} 1-0


[Site "https://www.chess.com"]

[Event "Titled Tuesday Blitz August 15 Early 2023"]
[White "Blokhin, Sofia"]
[Black "Politov, Pavel Y."]
[WhiteFideId "4508190"]
[BlackFideId "24110515"]
[WhiteElo "2279"]
[BlackElo "2090"]
[Result "1-0"]
[Round "7"]
[TimeControl "180+1"]
[Date "2023.08.15"]
[WhiteClock "0:00:31"]
[BlackClock "0:00:21"]
[Board "181"]

1. d4 {[%clk 0:03:00]}  d5 {[%clk 0:02:57]} 2. c4 {[%clk 0:03:00]}  dxc4 {[%clk 0:02:57]} 3. Nf3 {[%clk 0:02:58]}  Nf6 {[%clk 0:02:56]} 4. e3 {[%clk 0:02:55]}  e6 {[%clk 0:02:56]} 5. Bxc4 {[%clk 0:02:54]}  c5 {[%clk 0:02:56]} 6. Nc3 {[%clk 0:02:51]}  a6 {[%clk 0:02:55]} 7. a4 {[%clk 0:02:50]}  Nc6 {[%clk 0:02:54]} 8. O-O {[%clk 0:02:46]}  Be7 {[%clk 0:02:53]} 9. d5 {[%clk 0:02:42]}  exd5 {[%clk 0:02:52]} 10. Nxd5 {[%clk 0:02:42]}  Nxd5 {[%clk 0:02:52]} 11. Bxd5 {[%clk 0:02:42]}  Nb4 {[%clk 0:02:52]} 12. Bb3 {[%clk 0:02:39]}  O-O {[%clk 0:02:40]} 13. Bd2 {[%clk 0:02:29]}  Nd3 {[%clk 0:02:36]} 14. Qc2 {[%clk 0:02:21]}  Bf5 {[%clk 0:02:16]} 15. e4 {[%clk 0:02:05]}  Bxe4 {[%clk 0:02:09]} 16. Qc4 {[%clk 0:02:01]}  Bg6 {[%clk 0:01:54]} 17. Bc3 {[%clk 0:01:48]}  Qc7 {[%clk 0:01:47]} 18. Rad1 {[%clk 0:01:36]}  Rad8 {[%clk 0:01:43]} 19. Bc2 {[%clk 0:01:26]}  b5 {[%clk 0:01:04]} 20. axb5 {[%clk 0:01:15]}  axb5 {[%clk 0:01:03]} 21. Qxb5 {[%clk 0:01:15]}  Nb4 {[%clk 0:01:02]} 22. Bxg6 {[%clk 0:01:09]}  hxg6 {[%clk 0:01:01]} 23. Qc4 {[%clk 0:01:01]}  Nc6 {[%clk 0:00:37]} 24. h4 {[%clk 0:00:52]}  Rxd1 {[%clk 0:00:35]} 25. Rxd1 {[%clk 0:00:51]}  Rd8 {[%clk 0:00:35]} 26. Re1 {[%clk 0:00:50]}  Bf8 {[%clk 0:00:32]} 27. Ng5 {[%clk 0:00:45]}  Qd7 {[%clk 0:00:26]} 28. h5 {[%clk 0:00:40]}  gxh5 {[%clk 0:00:23]} 29. Qe4 {[%clk 0:00:33]}  Qd5 {[%clk 0:00:21]} 30. Qh7# {[%clk 0:00:31]} 1-0


[Site "https://www.chess.com"]

[Event "Titled Tuesday Blitz August 15 Early 2023"]
[White "Kriti Mayur Patel"]
[Black "Dilmukhametov, Artur"]
[WhiteFideId "35061780"]
[BlackFideId "24179922"]
[WhiteElo "2064"]
[BlackElo "2249"]
[Result "1-0"]
[Round "7"]
[TimeControl "180+1"]
[Date "2023.08.15"]
[WhiteClock "0:02:00"]
[BlackClock "0:00:25"]
[Board "183"]

1. e4 {[%clk 0:03:00]}  c6 {[%clk 0:02:59]} 2. d4 {[%clk 0:03:01]}  d5 {[%clk 0:02:59]} 3. exd5 {[%clk 0:03:02]}  cxd5 {[%clk 0:03:00]} 4. Bd3 {[%clk 0:03:02]}  Nc6 {[%clk 0:02:59]} 5. c3 {[%clk 0:03:03]}  Nf6 {[%clk 0:02:58]} 6. Bf4 {[%clk 0:03:03]}  Bg4 {[%clk 0:02:58]} 7. Qb3 {[%clk 0:03:03]}  Qc8 {[%clk 0:02:57]} 8. Nd2 {[%clk 0:03:02]}  e6 {[%clk 0:02:53]} 9. Ngf3 {[%clk 0:03:02]}  Bxf3 {[%clk 0:02:49]} 10. Nxf3 {[%clk 0:03:02]}  Be7 {[%clk 0:02:50]} 11. O-O {[%clk 0:03:02]}  O-O {[%clk 0:02:50]} 12. Rae1 {[%clk 0:02:59]}  a6 {[%clk 0:02:50]} 13. Bb1 {[%clk 0:03:00]}  h6 {[%clk 0:02:29]} 14. Ne5 {[%clk 0:02:51]}  Rd8 {[%clk 0:02:25]} 15. Qc2 {[%clk 0:02:47]}  Bf8 {[%clk 0:02:13]} 16. Qd3 {[%clk 0:02:32]}  Ne4 {[%clk 0:02:10]} 17. f3 {[%clk 0:02:29]}  Nf6 {[%clk 0:01:55]} 18. Nxc6 {[%clk 0:02:29]}  bxc6 {[%clk 0:01:46]} 19. Be5 {[%clk 0:02:29]}  Be7 {[%clk 0:01:17]} 20. f4 {[%clk 0:02:25]}  c5 {[%clk 0:01:15]} 21. Bxf6 {[%clk 0:02:16]}  Bxf6 {[%clk 0:01:14]} 22. Qh7+ {[%clk 0:02:16]}  Kf8 {[%clk 0:01:14]} 23. f5 {[%clk 0:02:17]}  Rd6 {[%clk 0:01:07]} 24. fxe6 {[%clk 0:02:12]}  Rxe6 {[%clk 0:01:08]} 25. Bf5 {[%clk 0:02:09]}  Rxe1 {[%clk 0:00:25]} 26. Rxe1 {[%clk 0:02:00]} 1-0


[Site "https://www.chess.com"]